fUST/lending_fUST_20250708
["ID","MTS","AMOUNT","RATE_DAILY","PERIOD"]
[370269742,1751932238109,-1182.2930977,0.00019425,2]
[370269743,1751932238120,-158.894249,0.00019437,2]
[370269744,1751932238131,-1019.28210592,0.00019441,2]
[370269745,1751932238141,-151.0,0.00019451,2]
[370269746,1751932238152,-297.72307324,0.00019452,2]
[370269747,1751932238161,-642.04210741,0.00019452,2]
[370269749,1751932238170,-151.0,0.00019452,2]
[370269751,1751932238180,-151.0,0.00019452,2]
[370269752,1751932238189,-283.46034411,0.00019452,2]
[370269755,1751932238201,-460.0,0.00019452,2]
[370269756,1751932238210,-460.0,0.00019452,2]
[370269758,1751932238219,-460.0,0.00019452,2]
[370269760,1751932238229,-460.0,0.00019452,2]
[370269762,1751932238239,-307.32578742,0.00019452,2]
[370269764,1751932238251,-460.0,0.00019452,2]
[370269766,1751932238261,-470.07531415,0.00019452,2]
[370269768,1751932238271,-460.0,0.00019452,2]
[370269770,1751932238280,-460.0,0.00019452,2]
[370269772,1751932238290,-460.0,0.00019452,2]
[370269774,1751932238300,-460.0,0.00019452,2]
[370269776,1751932238310,-460.0,0.00019452,2]
[370269778,1751932238319,-171.692316,0.00019452,2]
[370269780,1751932238329,-460.0,0.00019452,2]
[370269782,1751932238339,-460.0,0.00019452,2]
[370269785,1751932238348,-460.0,0.00019452,2]
[370269787,1751932238358,-460.0,0.00019452,2]
[370269802,1751932238488,-216.904468,0.00019452,2]
[370269804,1751932238499,-460.0,0.00019452,2]
[370269806,1751932238508,-460.0,0.00019452,2]
[370269808,1751932238517,-460.0,0.00019452,2]
[370269810,1751932238527,-414.78821765,0.00019452,2]
[370269812,1751932238537,-460.0,0.00019452,2]
[370269814,1751932238546,-293.07384665,0.00019452,2]
[370269816,1751932238555,-546.14214036,0.00019452,2]
[370269818,1751932238566,-460.0,0.00019452,2]
[370269820,1751932238576,-460.0,0.00019452,2]
[370269822,1751932238585,-460.0,0.00019452,2]
[370269824,1751932238594,-193.250408,0.00019452,2]
[370269826,1751932238603,-193.250408,0.00019452,2]
[370269828,1751932238613,-193.250408,0.00019452,2]
[370269830,1751932238623,-193.250408,0.00019452,2]
[370269832,1751932238632,-193.250408,0.00019452,2]
[370269834,1751932238642,-193.250408,0.00019452,2]
[370269836,1751932238651,-193.250408,0.00019452,2]
[370269838,1751932238661,-193.250414,0.00019452,2]
[370269840,1751932238671,-460.0,0.00019452,2]
[370269842,1751932238680,-460.0,0.00019452,2]
[370269844,1751932238690,-460.0,0.00019452,2]
[370269846,1751932238699,-460.0,0.00019452,2]
[370269848,1751932238709,-440.0,0.00019452,2]
[370269850,1751932238718,-460.0,0.00019452,2]
[370269852,1751932238728,-460.0,0.00019452,2]
[370269854,1751932238737,-460.0,0.00019452,2]
[370269856,1751932238747,-460.0,0.00019452,2]
[370269858,1751932238756,-460.0,0.00019452,2]
[370269860,1751932238766,-460.0,0.00019452,2]
[370269862,1751932238776,-460.0,0.00019452,2]
[370269864,1751932238785,-460.0,0.00019452,2]
[370269866,1751932238795,-460.0,0.00019452,2]
[370269868,1751932238804,-585.0,0.00019452,2]
[370269869,1751932238814,-460.0,0.00019452,2]
[370269871,1751932238824,-460.0,0.00019452,2]
[370269873,1751932238833,-460.0,0.00019452,2]
[370269874,1751932238842,-460.0,0.00019452,2]
[370269875,1751932238852,-280.0,0.00019452,2]
[370269876,1751932238861,-460.0,0.00019452,2]
[370269877,1751932238870,-460.0,0.00019452,2]
[370269878,1751932238880,-314.89,0.00019452,2]
[370269879,1751932238889,-460.0,0.00019452,2]
[370269880,1751932238898,-152.02061485,0.00019452,2]
[370269881,1751932238908,-460.0,0.00019452,2]
[370269882,1751932238917,-460.0,0.00019452,2]
[370269883,1751932238927,-583.6912057,0.00019452,2]
[370269884,1751932238937,-396.31568514,0.00019452,2]
[370269885,1751932238946,-460.0,0.00019452,2]
[370269886,1751932238955,-460.0,0.00019452,2]
[370269887,1751932238964,-460.0,0.00019452,2]
[370269888,1751932238974,-460.0,0.00019452,2]
[370269889,1751932238996,-460.0,0.00019452,2]
[370269890,1751932239005,-460.0,0.00019452,2]
[370269891,1751932239014,-460.0,0.00019452,2]
[370269892,1751932239024,-460.0,0.00019452,2]
[370269893,1751932239033,-460.0,0.00019452,2]
[370269894,1751932239043,-460.0,0.00019452,2]
[370269895,1751932239052,-460.0,0.00019452,2]
[370269896,1751932239062,-460.0,0.00019452,2]
[370269897,1751932239071,-639.33,0.00019452,2]
[370269898,1751932239082,-460.0,0.00019452,2]
[370269899,1751932239093,-460.0,0.00019452,2]
[370269900,1751932239103,-460.0,0.00019452,2]
[370269901,1751932239115,-460.0,0.00019452,2]
[370269902,1751932239124,-460.0,0.00019452,2]
[370269903,1751932239133,-457.43719005,0.00019452,2]
[370269904,1751932239145,-460.0,0.00019452,2]
[370269905,1751932239155,-460.0,0.00019452,2]
[370269906,1751932239165,-460.0,0.00019452,2]
[370269907,1751932239174,-460.0,0.00019452,2]
[370269908,1751932239184,-460.0,0.00019452,2]
[370269909,1751932239193,-460.0,0.00019452,2]
[370269910,1751932239203,-460.0,0.00019452,2]
[370269911,1751932239212,-460.0,0.00019452,2]
[370269912,1751932239221,-460.0,0.00019452,2]
[370269913,1751932239231,-460.0,0.00019452,2]
[370269914,1751932239240,-460.0,0.00019452,2]
[370269915,1751932239254,-460.0,0.00019452,2]
[370269916,1751932239263,-1500.0,0.00019452,7]
[370269917,1751932239272,-1500.0,0.00019452,7]
[370269918,1751932239282,-1500.0,0.00019452,7]
[370269919,1751932239292,-1500.0,0.00019452,7]
[370269920,1751932239301,-1500.0,0.00019452,7]
[370269921,1751932239311,-1500.0,0.00019452,7]
[370269922,1751932239320,-1500.0,0.00019452,7]
[370269923,1751932239331,-1500.0,0.00019452,7]
[370269924,1751932239340,-1542.664356,0.00019452,7]
[370269925,1751932239350,-959.8,0.00019452,2]
[370269926,1751932239359,-460.0,0.00019452,2]
[370269927,1751932239369,-460.0,0.00019452,2]
[370269928,1751932239379,-460.0,0.00019452,2]
[370269929,1751932239388,-460.0,0.00019452,2]
[370269930,1751932239397,-460.0,0.00019452,2]
[370269931,1751932239407,-460.0,0.00019452,2]
[370269932,1751932239416,-460.0,0.00019452,2]
[370269933,1751932239426,-460.0,0.00019452,2]
[370269934,1751932239436,-460.0,0.00019452,2]
[370269935,1751932239446,-285.73786514,0.00019452,2]
[370269936,1751932239455,-460.0,0.00019452,2]
[370269937,1751932239465,-460.0,0.00019452,2]
[370269938,1751932239474,-460.0,0.00019452,2]
[370269939,1751932239484,-460.0,0.00019452,2]
[370269940,1751932239493,-460.0,0.00019452,2]
[370269941,1751932239503,-362.91775293,0.00019452,2]
[370269942,1751932239512,-460.0,0.00019452,2]
[370269943,1751932239522,-725.85,0.00019452,2]
[370269944,1751932239531,-460.0,0.00019452,2]
[370269945,1751932239541,-2891.56,0.00019452,2]
[370269946,1751932239550,-460.0,0.00019452,2]
[370269947,1751932239560,-460.0,0.00019452,2]
[370269948,1751932239569,-677.57,0.00019452,2]
[370269949,1751932239579,-574.2483463,0.00019452,2]
[370269950,1751932239588,-419.06159599,0.00019452,2]
[370269951,1751932239598,-632.32,0.00019452,2]
[370269952,1751932239608,-460.0,0.00019452,2]
[370269953,1751932239617,-460.0,0.00019452,2]
[370269954,1751932239627,-460.0,0.00019452,2]
[370269955,1751932239636,-865.3,0.00019452,2]
[370269956,1751932239646,-151.0,0.00019452,2]
[370269957,1751932239656,-151.0,0.00019452,2]
[370269958,1751932239666,-151.0,0.00019452,2]
[370269959,1751932239676,-1516.65,0.00019452,2]
[370269960,1751932239686,-460.0,0.00019452,2]
[370269961,1751932239695,-460.0,0.00019452,2]
[370269962,1751932239704,-460.0,0.00019452,2]
[370269963,1751932239714,-460.0,0.00019452,2]
[370269964,1751932239724,-328.8730505,0.00019452,2]
[370269965,1751932239733,-679.03,0.00019452,2]
[370269966,1751932239742,-460.0,0.00019452,2]
[370269967,1751932239752,-460.0,0.00019452,2]
[370269968,1751932239761,-560.92,0.00019452,2]
[370269969,1751932239770,-663.4,0.00019452,2]
[370269970,1751932239780,-558.14,0.00019452,2]
[370269971,1751932239789,-2373.37,0.00019452,2]
[370269972,1751932239799,-686.48,0.00019452,2]
[370269973,1751932239808,-858.12,0.00019452,2]
[370269974,1751932239817,-460.0,0.00019452,2]
[370269975,1751932239826,-460.0,0.00019452,2]
[370269976,1751932239835,-460.0,0.00019452,2]
[370269977,1751932239844,-460.0,0.00019452,2]
[370269978,1751932239853,-3952.52,0.00019452,2]
[370269980,1751932239863,-871.3,0.00019452,2]
[370269981,1751932239872,-2069.32,0.00019452,2]
[370269982,1751932239881,-460.0,0.00019452,2]
[370269983,1751932239890,-460.0,0.00019452,2]
[370269984,1751932239899,-4025.68,0.00019452,2]
[370269985,1751932239908,-460.0,0.00019452,2]
[370269986,1751932239917,-460.0,0.00019452,2]
[370269987,1751932239926,-460.0,0.00019452,2]
[370269988,1751932239935,-842.12,0.00019452,2]
[370269989,1751932239944,-3414.37,0.00019452,2]
[370269992,1751932239953,-460.0,0.00019452,2]
[370269995,1751932239963,-460.0,0.00019452,2]
[370269996,1751932239972,-588.89,0.00019452,2]
[370269998,1751932239981,-460.0,0.00019452,2]
[370270000,1751932239991,-460.0,0.00019452,2]
[370270001,1751932240000,-176.4631888,0.00019452,2]
[370270004,1751932240010,-460.0,0.00019452,2]
[370270005,1751932240019,-460.0,0.00019452,2]
[370270006,1751932240029,-565.0,0.00019452,2]
[370270007,1751932240038,-674.86,0.00019452,2]
[370270009,1751932240047,-1838.66,0.00019452,2]
[370270012,1751932240057,-460.0,0.00019452,2]
[370270013,1751932240067,-460.0,0.00019452,2]
[370270014,1751932240076,-608.66838304,0.00019452,2]
[370270015,1751932240085,-460.0,0.00019452,2]
[370270016,1751932240095,-460.0,0.00019452,2]
[370270017,1751932240104,-520.76,0.00019452,2]
[370270018,1751932240114,-460.0,0.00019452,2]
[370270019,1751932240123,-460.0,0.00019452,2]
[370270020,1751932240133,-2264.33,0.00019452,2]
[370270021,1751932240142,-460.0,0.00019452,2]
[370270022,1751932240151,-1392.65,0.00019452,2]
[370270023,1751932240161,-460.0,0.00019452,2]
[370270024,1751932240170,-460.0,0.00019452,2]
[370270025,1751932240179,-4567.79,0.00019452,2]
[370270026,1751932240188,-649.96,0.00019452,2]
[370270027,1751932240197,-2627.88,0.00019452,2]
[370270028,1751932240207,-460.0,0.00019452,2]
[370270029,1751932240216,-12584.46609586,0.00019452,7]
[370270030,1751932240225,-460.0,0.00019452,2]
[370270031,1751932240235,-460.0,0.00019452,2]
[370270032,1751932240245,-460.0,0.00019452,2]
[370270033,1751932240256,-460.0,0.00019452,2]
[370270034,1751932240266,-460.0,0.00019452,2]
[370270035,1751932240275,-460.0,0.00019452,2]
[370270036,1751932240285,-1539.95,0.00019452,2]
[370270037,1751932240295,-460.0,0.00019452,2]
[370270038,1751932240304,-460.0,0.00019452,2]
[370270039,1751932240314,-460.0,0.00019452,2]
[370270040,1751932240324,-700.5,0.00019452,2]
[370270042,1751932240333,-460.0,0.00019452,2]
[370270044,1751932240343,-2867.65,0.00019452,2]
[370270046,1751932240352,-460.0,0.00019452,2]
[370270048,1751932240362,-894.54,0.00019452,2]
[370270050,1751932240371,-460.0,0.00019452,2]
[370270052,1751932240381,-460.0,0.00019452,2]
[370270054,1751932240390,-460.0,0.00019452,2]
[370270056,1751932240400,-460.0,0.00019452,2]
[370270058,1751932240410,-460.0,0.00019452,2]
[370270060,1751932240420,-460.0,0.00019452,2]
[370270062,1751932240430,-214.06929976,0.00019452,7]
[370270064,1751932240440,-460.0,0.00019452,2]
[370270066,1751932240449,-460.0,0.00019452,2]
[370270068,1751932240459,-460.0,0.00019452,2]
[370270070,1751932240468,-519.35,0.00019452,2]
[370270072,1751932240477,-460.0,0.00019452,2]
[370270074,1751932240487,-708.26,0.00019452,2]
[370270076,1751932240496,-1281.07,0.00019452,2]
[370270078,1751932240505,-848.27993403,0.00019452,7]
[370270080,1751932240514,-539.59,0.00019452,2]
[370270083,1751932240524,-2120.33,0.00019452,2]
[370270085,1751932240534,-460.0,0.00019452,2]
[370270087,1751932240543,-460.0,0.00019452,2]
[370270088,1751932240552,-496.15,0.00019452,2]
[370270090,1751932240562,-460.0,0.00019452,2]
[370270093,1751932240571,-4241.56,0.00019452,2]
[370270095,1751932240581,-2200.26,0.00019452,2]
[370270097,1751932240590,-460.0,0.00019452,2]
[370270099,1751932240600,-460.0,0.00019452,2]
[370270100,1751932240609,-460.0,0.00019452,2]
[370270103,1751932240620,-168.7,0.00019452,2]
[370270104,1751932240630,-460.0,0.00019452,2]
[370270106,1751932240639,-460.0,0.00019452,2]
[370270109,1751932240648,-2281.94,0.00019452,2]
[370270110,1751932240658,-3293.57,0.00019452,2]
[370270124,1751932240778,-460.0,0.00019452,2]
[370270126,1751932240787,-684.41,0.00019452,2]
[370270128,1751932240796,-291.310212,0.00019452,2]
[370270130,1751932240806,-460.0,0.00019452,2]
[370270132,1751932240815,-460.0,0.00019452,2]
[370270134,1751932240825,-1000.98,0.00019452,2]
[370270136,1751932240835,-460.0,0.00019452,2]
[370270138,1751932240844,-158.894249,0.00019462,2]
[370270140,1751932240854,-500.0,0.00019473,2]
[370270142,1751932240864,-500.0,0.00019473,2]
[370270144,1751932240873,-500.0,0.00019473,2]
[370270146,1751932240883,-500.0,0.00019473,2]
[370270148,1751932240892,-889.0,0.00019479,2]
[370270150,1751932240902,-1469.27236381,0.00019534,2]
[370270152,1751932240911,-158.894249,0.00019584,3]
[370270154,1751932240920,-477.0,0.00019592,2]
[370270156,1751932240930,-477.0,0.00019596,2]
[370270158,1751932240940,-150.0,0.00019682,2]
[370270160,1751932240949,-1000.0,0.00019721,2]
[370270162,1751932240958,-1000.0,0.00019721,2]
[370270164,1751932240968,-3116.556923,0.00019726,2]
[370270166,1751932240978,-151.0,0.00019726,2]
[370270168,1751932240987,-574.48155176,0.00019726,2]
[370270170,1751932240997,-151.0,0.00019726,2]
[370270172,1751932241006,-151.0,0.00019726,2]
[370270174,1751932241015,-151.0,0.00019726,2]
[370270177,1751932241039,-151.0,0.00019726,2]
[370270178,1751932241048,-151.0,0.00019726,2]
[370270181,1751932241058,-167.545467,0.00019726,2]
[370270182,1751932241068,-551.74005784,0.00019726,2]
[370270184,1751932241078,-211.84,0.00019726,2]
[370270186,1751932241087,-460.0,0.00019726,2]
[370270188,1751932241096,-151.0,0.00019726,2]
[370270190,1751932241106,-151.0,0.00019726,2]
[370270192,1751932241115,-151.0,0.00019726,2]
[370270194,1751932241123,-151.0,0.00019726,2]
[370270196,1751932241133,-151.0,0.00019726,2]
[370270197,1751932241143,-151.0,0.00019726,2]
[370270198,1751932241152,-203.354131,0.00019726,2]
[370270199,1751932241162,-460.0,0.00019726,2]
[370270200,1751932241171,-460.0,0.00019726,2]
[370270201,1751932241181,-460.0,0.00019726,2]
[370270202,1751932241190,-314.40816331,0.00019726,2]
[370270203,1751932241200,-460.0,0.00019726,2]
[370270204,1751932241209,-151.0,0.00019726,2]
[370270205,1751932241219,-151.0,0.00019726,2]
[370270206,1751932241228,-151.0,0.00019726,2]
[370270207,1751932241238,-151.0,0.00019726,2]
[370270208,1751932241248,-460.0,0.00019726,2]
[370270209,1751932241258,-151.0,0.00019726,2]
[370270210,1751932241267,-151.0,0.00019726,2]
[370270211,1751932241277,-151.0,0.00019726,2]
[370270212,1751932241286,-151.0,0.00019726,2]
[370270213,1751932241296,-460.0,0.00019726,2]
[370270214,1751932241306,-460.0,0.00019726,2]
[370270215,1751932241315,-151.0,0.00019726,2]
[370270217,1751932241325,-152.58852,0.00019726,2]
[370270219,1751932241334,-460.0,0.00019726,2]
[370270221,1751932241344,-460.0,0.00019726,2]
[370270223,1751932241353,-460.0,0.00019726,2]
[370270224,1751932241362,-460.0,0.00019726,2]
[370270227,1751932241371,-460.0,0.00019726,2]
[370270228,1751932241381,-460.0,0.00019726,2]
[370270230,1751932241390,-460.0,0.00019726,2]
[370270232,1751932241399,-460.0,0.00019726,2]
[370270235,1751932241409,-460.0,0.00019726,2]
[370270236,1751932241421,-460.0,0.00019726,2]
[370270239,1751932241430,-460.0,0.00019726,2]
[370270240,1751932241439,-460.0,0.00019726,2]
[370270242,1751932241449,-460.0,0.00019726,2]
[370270244,1751932241458,-460.0,0.00019726,2]
[370270247,1751932241468,-460.0,0.00019726,2]
[370270248,1751932241477,-460.0,0.00019726,2]
[370270250,1751932241487,-577.9567405,0.00019726,2]
[370270253,1751932241497,-585.0,0.00019726,2]
[370270255,1751932241507,-460.0,0.00019726,2]
[370270257,1751932241516,-460.0,0.00019726,2]
[370270259,1751932241526,-460.0,0.00019726,2]
[370270260,1751932241535,-152.53009194,0.00019726,2]
[370270262,1751932241544,-460.0,0.00019726,2]
[370270264,1751932241553,-460.0,0.00019726,2]
[370270267,1751932241563,-460.0,0.00019726,2]
[370270269,1751932241572,-460.0,0.00019726,2]
[370270271,1751932241582,-460.0,0.00019726,2]
[370270273,1751932241591,-460.0,0.00019726,2]
[370270274,1751932241601,-460.0,0.00019726,2]
[370270276,1751932241610,-460.0,0.00019726,2]
[370270278,1751932241619,-460.0,0.00019726,2]
[370270280,1751932241629,-460.0,0.00019726,2]
[370270283,1751932241638,-460.0,0.00019726,2]
[370270285,1751932241648,-460.0,0.00019726,2]
[370270286,1751932241657,-460.0,0.00019726,2]
[370270288,1751932241666,-458.11561876,0.00019726,2]
[370270291,1751932241675,-460.0,0.00019726,2]
[370270292,1751932241685,-639.33,0.00019726,2]
[370270295,1751932241695,-460.0,0.00019726,2]
[370270297,1751932241704,-460.0,0.00019726,2]
[370270298,1751932241713,-460.0,0.00019726,2]
[370270300,1751932241722,-460.0,0.00019726,2]
[370270302,1751932241732,-460.0,0.00019726,2]
[370270304,1751932241741,-460.0,0.00019726,2]
[370270306,1751932241751,-460.0,0.00019726,2]
[370270308,1751932241762,-460.0,0.00019726,2]
[370270310,1751932241772,-460.0,0.00019726,2]
[370270312,1751932241782,-460.0,0.00019726,2]
[370270314,1751932241791,-460.0,0.00019726,2]
[370270316,1751932241801,-460.0,0.00019726,2]
[370270318,1751932241811,-460.0,0.00019726,2]
[370270320,1751932241820,-460.0,0.00019726,2]
[370270323,1751932241830,-460.0,0.00019726,2]
[370270324,1751932241840,-959.8,0.00019726,2]
[370270326,1751932241850,-460.0,0.00019726,2]
[370270329,1751932241859,-460.0,0.00019726,2]
[370270331,1751932241869,-460.0,0.00019726,2]
[370270333,1751932241878,-460.0,0.00019726,2]
[370270334,1751932241887,-460.0,0.00019726,2]
[370270336,1751932241898,-460.0,0.00019726,2]
[370270338,1751932241907,-460.0,0.00019726,2]
[370270340,1751932241916,-460.0,0.00019726,2]
[370270342,1751932241926,-460.0,0.00019726,2]
[370270344,1751932241936,-184.76156487,0.00019726,2]
[370270346,1751932241946,-460.0,0.00019726,2]
[370270348,1751932241957,-460.0,0.00019726,2]
[370270351,1751932241967,-725.85,0.00019726,2]
[370270352,1751932241977,-460.0,0.00019726,2]
[370270354,1751932241986,-2891.56,0.00019726,2]
[370270357,1751932241995,-460.0,0.00019726,2]
[370270358,1751932242005,-460.0,0.00019726,2]
[370270361,1751932242015,-677.57,0.00019726,2]
[370270363,1751932242025,-632.32,0.00019726,2]
[370270365,1751932242035,-460.0,0.00019726,2]
[370270367,1751932242044,-460.0,0.00019726,2]
[370270369,1751932242054,-460.0,0.00019726,2]
[370270371,1751932242063,-865.3,0.00019726,2]
[370270373,1751932242072,-1516.65,0.00019726,2]
[370270375,1751932242081,-460.0,0.00019726,2]
[370270377,1751932242091,-460.0,0.00019726,2]
[370270379,1751932242100,-460.0,0.00019726,2]
[370270381,1751932242109,-460.0,0.00019726,2]
[370270382,1751932242118,-679.03,0.00019726,2]
[370270385,1751932242127,-460.0,0.00019726,2]
[370270386,1751932242136,-460.0,0.00019726,2]
[370270388,1751932242145,-560.92,0.00019726,2]
[370270390,1751932242154,-663.4,0.00019726,2]
[370270392,1751932242163,-558.14,0.00019726,2]
[370270394,1751932242173,-2373.37,0.00019726,2]
[370270396,1751932242182,-686.48,0.00019726,2]
[370270398,1751932242191,-858.12,0.00019726,2]
[370270400,1751932242200,-460.0,0.00019726,2]
[370270402,1751932242209,-460.0,0.00019726,2]
[370270404,1751932242218,-412.068575,0.00019726,2]
[370270406,1751932242227,-460.0,0.00019726,2]
[370270408,1751932242236,-3952.52,0.00019726,2]
[370270410,1751932242246,-871.3,0.00019726,2]
[370270413,1751932242258,-2069.32,0.00019726,2]
[370270414,1751932242268,-460.0,0.00019726,2]
[370270416,1751932242277,-460.0,0.00019726,2]
[370270418,1751932242286,-4025.68,0.00019726,2]
[370270421,1751932242297,-460.0,0.00019726,2]
[370270422,1751932242307,-460.0,0.00019726,2]
[370270424,1751932242316,-460.0,0.00019726,2]
[370270426,1751932242327,-842.12,0.00019726,2]
[370270429,1751932242337,-3414.37,0.00019726,2]
[370270431,1751932242347,-460.0,0.00019726,2]
[370270432,1751932242356,-588.89,0.00019726,2]
[370270434,1751932242365,-460.0,0.00019726,2]
[370270436,1751932242374,-460.0,0.00019726,2]
[370270438,1751932242384,-460.0,0.00019726,2]
[370270440,1751932242393,-460.0,0.00019726,2]
[370270443,1751932242403,-565.0,0.00019726,2]
[370270445,1751932242414,-674.86,0.00019726,2]
[370270447,1751932242423,-1226.24244113,0.00019726,2]
[370270463,1751932242569,-612.41755887,0.00019726,2]
[370270466,1751932242580,-460.0,0.00019726,2]
[370270468,1751932242591,-460.0,0.00019726,2]
[370270470,1751932242600,-460.0,0.00019726,2]
[370270472,1751932242611,-460.0,0.00019726,2]
[370270473,1751932242620,-520.76,0.00019726,2]
[370270476,1751932242630,-460.0,0.00019726,2]
[370270477,1751932242640,-460.0,0.00019726,2]
[370270491,1751932242757,-2264.33,0.00019726,2]
[370270493,1751932242768,-1392.65,0.00019726,2]
[370270495,1751932242778,-460.0,0.00019726,2]
[370270497,1751932242790,-460.0,0.00019726,2]
[370270499,1751932242800,-4567.79,0.00019726,2]
[370270501,1751932242809,-649.96,0.00019726,2]
[370270503,1751932242819,-2395.14212538,0.00019726,2]
[370270508,1751932242835,-232.73787462,0.00019726,2]
[370270511,1751932242845,-460.0,0.00019726,2]
[370270513,1751932242854,-460.0,0.00019726,2]
[370270515,1751932242863,-460.0,0.00019726,2]
[370270517,1751932242873,-460.0,0.00019726,2]
[370270519,1751932242882,-530.53,0.00019726,2]
[370270521,1751932242891,-460.0,0.00019726,2]
[370270523,1751932242900,-460.0,0.00019726,2]
[370270525,1751932242909,-1047.144815,0.00019726,2]
[370270527,1751932242921,-492.805185,0.00019726,2]
[370270529,1751932242931,-460.0,0.00019726,2]
[370270531,1751932242941,-460.0,0.00019726,2]
[370270533,1751932242951,-460.0,0.00019726,2]
[370270535,1751932242961,-700.5,0.00019726,2]
[370270537,1751932242971,-460.0,0.00019726,2]
[370270539,1751932242980,-460.0,0.00019726,2]
[370270541,1751932242989,-2867.65,0.00019726,2]
[370270543,1751932243000,-894.54,0.00019726,2]
[370270545,1751932243009,-460.0,0.00019726,2]
[370270547,1751932243018,-460.0,0.00019726,2]
[370270550,1751932243027,-460.0,0.00019726,2]
[370270553,1751932243036,-460.0,0.00019726,2]
[370270556,1751932243045,-460.0,0.00019726,2]
[370270560,1751932243055,-460.0,0.00019726,2]
[370270563,1751932243064,-460.0,0.00019726,2]
[370270565,1751932243074,-360.0,0.00019726,2]
[370270567,1751932243085,-460.0,0.00019726,2]
[370270569,1751932243095,-708.26,0.00019726,2]
[370270571,1751932243104,-1281.07,0.00019726,2]
[370270573,1751932243113,-2120.33,0.00019726,2]
[370270575,1751932243122,-460.0,0.00019726,2]
[370270577,1751932243132,-460.0,0.00019726,2]
[370270579,1751932243141,-496.15,0.00019726,2]
[370270581,1751932243150,-460.0,0.00019726,2]
[370270583,1751932243160,-4241.56,0.00019726,2]
[370270585,1751932243169,-2200.26,0.00019726,2]
[370270587,1751932243178,-460.0,0.00019726,2]
[370270589,1751932243187,-460.0,0.00019726,2]
[370270591,1751932243197,-460.0,0.00019726,2]
[370270593,1751932243207,-2281.94,0.00019726,2]
[370270595,1751932243216,-3293.57,0.00019726,2]
[370270597,1751932243225,-684.41,0.00019726,2]
[370270599,1751932243234,-460.0,0.00019726,2]
[370270601,1751932243243,-460.0,0.00019726,2]
[370270603,1751932243257,-1000.98,0.00019726,2]
[370270605,1751932243266,-460.0,0.00019726,2]
[370270607,1751932243275,-498.34612582,0.00019748,2]
[370270609,1751932243284,-36.05968048,0.00019773,2]
[370270682,1751932243934,-500.0,0.00019069,2]
[370270684,1751932243943,-500.0,0.00019069,2]
[370270686,1751932243952,-500.0,0.00019069,2]
[370270687,1751932243961,-0.58988188,0.00019069,2]
[370270690,1751932243973,-499.41011812,0.00019069,2]
[370270692,1751932243982,-257.73051745,0.00019069,2]
[370270694,1751932243992,-242.26948255,0.00019069,2]
[370270696,1751932244002,-273.99743345,0.00019069,2]
[370270698,1751932244014,-226.00256655,0.00019069,2]
[370270700,1751932244023,-282.06240587,0.00019069,2]
[370270702,1751932244034,-217.93759413,0.00019069,2]
[370270704,1751932244043,-212.00869457,0.00019069,2]